[Event "Titled Tuesday Blitz June 21 Early 2022"]
[White "Paravyan, David"]
[Black "Grischuk, Alexander"]
[WhiteFideId "4194985"]
[BlackFideId "4126025"]
[WhiteElo "2569"]
[BlackElo "2762"]
[Result "1/2-1/2"]
[Round "04"]
[TimeControl "180+1"]
[Date "2022.06.21"]
[WhiteClock "0:00:37"]
[BlackClock "0:00:06"]

1. e4 {[%clk 0:03:00]}  e5 {[%clk 0:03:00]} 2. Nf3 {[%clk 0:03:01]}  Nc6 {[%clk 0:03:00]} 3. Nc3 {[%clk 0:03:01]}  Nf6 {[%clk 0:03:00]} 4. d4 {[%clk 0:03:02]}  exd4 {[%clk 0:03:01]} 5. Nxd4 {[%clk 0:03:03]}  Bb4 {[%clk 0:03:01]} 6. Nxc6 {[%clk 0:03:03]}  bxc6 {[%clk 0:03:02]} 7. Bd3 {[%clk 0:03:04]}  d5 {[%clk 0:03:02]} 8. exd5 {[%clk 0:03:05]}  O-O {[%clk 0:03:03]} 9. O-O {[%clk 0:03:05]}  cxd5 {[%clk 0:03:03]} 10. Bg5 {[%clk 0:03:05]}  Be7 {[%clk 0:03:02]} 11. Bxf6 {[%clk 0:03:04]}  Bxf6 {[%clk 0:02:55]} 12. Nxd5 {[%clk 0:03:04]}  Bxb2 {[%clk 0:02:38]} 13. Rb1 {[%clk 0:03:03]}  Bf6 {[%clk 0:02:24]} 14. Qh5 {[%clk 0:02:36]}  h6 {[%clk 0:02:21]} 15. Be4 {[%clk 0:02:06]}  c6 {[%clk 0:02:18]} 16. Nxf6+ {[%clk 0:02:01]}  Qxf6 {[%clk 0:02:17]} 17. Qc5 {[%clk 0:02:02]}  Be6 {[%clk 0:02:15]} 18. a3 {[%clk 0:02:01]}  Bd5 {[%clk 0:02:10]} 19. Bxd5 {[%clk 0:02:00]}  cxd5 {[%clk 0:02:11]} 20. Qxd5 {[%clk 0:02:00]}  Rac8 {[%clk 0:02:05]} 21. c4 {[%clk 0:01:53]}  Rfd8 {[%clk 0:02:01]} 22. Qa5 {[%clk 0:01:48]}  Rd7 {[%clk 0:01:29]} 23. c5 {[%clk 0:01:38]}  Qd4 {[%clk 0:01:18]} 24. Rbc1 {[%clk 0:01:36]}  Rdc7 {[%clk 0:00:52]} 25. Qa6 {[%clk 0:01:36]}  Rc6 {[%clk 0:00:38]} 26. Qxa7 {[%clk 0:01:35]}  Rxc5 {[%clk 0:00:39]} 27. g3 {[%clk 0:01:29]}  Qd5 {[%clk 0:00:39]} 28. Rxc5 {[%clk 0:01:23]}  Rxc5 {[%clk 0:00:40]} 29. Qb8+ {[%clk 0:01:21]}  Kh7 {[%clk 0:00:39]} 30. Qb1+ {[%clk 0:01:21]}  g6 {[%clk 0:00:34]} 31. Rd1 {[%clk 0:01:20]}  Qf3 {[%clk 0:00:28]} 32. Qd3 {[%clk 0:01:20]}  Qxd3 {[%clk 0:00:26]} 33. Rxd3 {[%clk 0:01:21]}  Rc2 {[%clk 0:00:23]} 34. g4 {[%clk 0:01:18]}  Kg7 {[%clk 0:00:21]} 35. Rf3 {[%clk 0:01:17]}  h5 {[%clk 0:00:12]} 36. gxh5 {[%clk 0:01:17]}  gxh5 {[%clk 0:00:13]} 37. Kg2 {[%clk 0:01:17]}  Ra2 {[%clk 0:00:10]} 38. Kg3 {[%clk 0:01:16]}  Kg6 {[%clk 0:00:11]} 39. Kh4 {[%clk 0:01:15]}  f6 {[%clk 0:00:11]} 40. Kg3 {[%clk 0:01:12]}  Ra1 {[%clk 0:00:11]} 41. Rc3 {[%clk 0:01:10]}  Ra2 {[%clk 0:00:10]} 42. Kf3 {[%clk 0:01:06]}  Kg5 {[%clk 0:00:10]} 43. Rc5+ {[%clk 0:01:05]}  f5 {[%clk 0:00:10]} 44. Ra5 {[%clk 0:01:06]}  h4 {[%clk 0:00:09]} 45. Ra8 {[%clk 0:01:05]}  Rb2 {[%clk 0:00:08]} 46. Rg8+ {[%clk 0:01:04]}  Kf6 {[%clk 0:00:08]} 47. Ra8 {[%clk 0:01:02]}  Kg5 {[%clk 0:00:08]} 48. h3 {[%clk 0:01:02]}  Rb3+ {[%clk 0:00:09]} 49. Kg2 {[%clk 0:01:02]}  Kf4 {[%clk 0:00:08]} 50. Ra4+ {[%clk 0:00:58]}  Kg5 {[%clk 0:00:09]} 51. Ra8 {[%clk 0:00:51]}  Kf4 {[%clk 0:00:09]} 52. a4 {[%clk 0:00:52]}  Ra3 {[%clk 0:00:08]} 53. a5 {[%clk 0:00:52]}  Ra1 {[%clk 0:00:07]} 54. a6 {[%clk 0:00:53]}  Ra2 {[%clk 0:00:07]} 55. a7 {[%clk 0:00:53]}  Ra1 {[%clk 0:00:07]} 56. Rh8 {[%clk 0:00:53]}  Rxa7 {[%clk 0:00:07]} 57. Rxh4+ {[%clk 0:00:54]}  Kg5 {[%clk 0:00:08]} 58. Rb4 {[%clk 0:00:55]}  Ra3 {[%clk 0:00:08]} 59. h4+ {[%clk 0:00:54]}  Kh5 {[%clk 0:00:07]} 60. f3 {[%clk 0:00:55]}  Ra1 {[%clk 0:00:05]} 61. Kg3 {[%clk 0:00:54]}  Rg1+ {[%clk 0:00:04]} 62. Kf4 {[%clk 0:00:54]}  Kxh4 {[%clk 0:00:04]} 63. Kxf5+ {[%clk 0:00:53]}  Kh5 {[%clk 0:00:04]} 64. Rb6 {[%clk 0:00:45]}  Rg5+ {[%clk 0:00:03]} 65. Ke4 {[%clk 0:00:45]}  Ra5 {[%clk 0:00:02]} 66. f4 {[%clk 0:00:45]}  Ra4+ {[%clk 0:00:03]} 67. Ke5 {[%clk 0:00:45]}  Ra5+ {[%clk 0:00:04]} 68. Ke4 {[%clk 0:00:38]}  Ra4+ {[%clk 0:00:03]} 69. Kf5 {[%clk 0:00:35]}  Ra5+ {[%clk 0:00:04]} 70. Kf6 {[%clk 0:00:36]}  Kg4 {[%clk 0:00:04]} 71. Rb4 {[%clk 0:00:36]}  Rf5+ {[%clk 0:00:04]} 72. Kg6 {[%clk 0:00:37]}  Rxf4 {[%clk 0:00:05]} 73. Rxf4+ {[%clk 0:00:37]}  Kxf4 {[%clk 0:00:06]} 1/2-1/2


[Site "https://www.chess.com"]

[Event "Titled Tuesday Blitz June 21 Early 2022"]
[White "Parkhov, Yair"]
[Black "Rostovtsev, Dmitry"]
[WhiteFideId "2813408"]
[BlackFideId "34278320"]
[WhiteElo "2567"]
[BlackElo "2768"]
[Result "0-1"]
[Round "04"]
[TimeControl "180+1"]
[Date "2022.06.21"]
[WhiteClock "0:00:30"]
[BlackClock "0:01:49"]

1. e4 {[%clk 0:03:00]}  e5 {[%clk 0:02:59]} 2. Nf3 {[%clk 0:02:58]}  Nc6 {[%clk 0:03:00]} 3. Bc4 {[%clk 0:02:55]}  Bc5 {[%clk 0:02:59]} 4. d3 {[%clk 0:02:53]}  Nf6 {[%clk 0:02:59]} 5. O-O {[%clk 0:02:23]}  d6 {[%clk 0:02:47]} 6. h3 {[%clk 0:02:22]}  O-O {[%clk 0:02:46]} 7. Bg5 {[%clk 0:02:22]}  h6 {[%clk 0:02:45]} 8. Bh4 {[%clk 0:02:22]}  g5 {[%clk 0:02:45]} 9. Bg3 {[%clk 0:02:20]}  Nh5 {[%clk 0:02:43]} 10. Bh2 {[%clk 0:02:19]}  g4 {[%clk 0:02:41]} 11. hxg4 {[%clk 0:01:50]}  Bxg4 {[%clk 0:02:42]} 12. Nbd2 {[%clk 0:01:50]}  Kh8 {[%clk 0:02:27]} 13. c3 {[%clk 0:01:43]}  Qf6 {[%clk 0:02:24]} 14. Kh1 {[%clk 0:01:31]}  Rg8 {[%clk 0:02:24]} 15. b4 {[%clk 0:01:17]}  Bb6 {[%clk 0:02:21]} 16. a4 {[%clk 0:01:15]}  a5 {[%clk 0:02:19]} 17. b5 {[%clk 0:01:11]}  Ne7 {[%clk 0:02:19]} 18. Qb3 {[%clk 0:01:09]}  Rg7 {[%clk 0:02:15]} 19. d4 {[%clk 0:01:09]}  Nf4 {[%clk 0:02:11]} 20. dxe5 {[%clk 0:00:29]}  dxe5 {[%clk 0:02:10]} 21. Bxf4 {[%clk 0:00:29]}  Qxf4 {[%clk 0:02:08]} 22. Be2 {[%clk 0:00:30]}  Rag8 {[%clk 0:02:02]} 23. Rad1 {[%clk 0:00:29]}  Bxf3 {[%clk 0:01:51]} 24. Bxf3 {[%clk 0:00:29]}  Qh4+ {[%clk 0:01:48]} 25. Kg1 {[%clk 0:00:29]}  Rxg2+ {[%clk 0:01:48]} 26. Bxg2 {[%clk 0:00:30]}  Qg3 {[%clk 0:01:49]} 0-1


[Site "https://www.chess.com"]

[Event "Titled Tuesday Blitz June 21 Early 2022"]
[White "Petrovic, Aleksa"]
[Black "Tinmaz, Kerem"]
[WhiteFideId "967629"]
[BlackFideId "44559151"]
[WhiteElo "2117"]
[BlackElo "1443"]
[Result "1-0"]
[Round "04"]
[TimeControl "180+1"]
[Date "2022.06.21"]
[WhiteClock "0:00:33"]
[BlackClock "0:00:01"]

1. d4 {[%clk 0:03:00]}  d5 {[%clk 0:02:59]} 2. c4 {[%clk 0:03:00]}  c6 {[%clk 0:03:00]} 3. Nf3 {[%clk 0:02:59]}  Nf6 {[%clk 0:03:00]} 4. Nc3 {[%clk 0:02:59]}  dxc4 {[%clk 0:03:01]} 5. e4 {[%clk 0:02:57]}  b5 {[%clk 0:03:01]} 6. Be2 {[%clk 0:02:57]}  Bg4 {[%clk 0:02:39]} 7. a4 {[%clk 0:02:40]}  b4 {[%clk 0:02:38]} 8. e5 {[%clk 0:02:40]}  bxc3 {[%clk 0:02:27]} 9. exf6 {[%clk 0:02:39]}  cxb2 {[%clk 0:02:25]} 10. fxg7 {[%clk 0:02:08]}  bxa1=Q {[%clk 0:01:16]} 11. gxh8=Q {[%clk 0:02:06]}  Qa5+ {[%clk 0:01:14]} 12. Kf1 {[%clk 0:01:59]}  Bxf3 {[%clk 0:00:32]} 13. gxf3 {[%clk 0:01:19]}  Nd7 {[%clk 0:00:31]} 14. Qxh7 {[%clk 0:01:12]}  Q5xa4 {[%clk 0:00:22]} 15. Qhc2 {[%clk 0:01:01]}  Qxc2 {[%clk 0:00:20]} 16. Qxc2 {[%clk 0:01:01]}  O-O-O {[%clk 0:00:20]} 17. Qxc4 {[%clk 0:00:59]}  Kc7 {[%clk 0:00:18]} 18. Kg2 {[%clk 0:00:58]}  Nb6 {[%clk 0:00:16]} 19. Bf4+ {[%clk 0:00:57]}  Kb7 {[%clk 0:00:16]} 20. Rxa1 {[%clk 0:00:56]}  Nxc4 {[%clk 0:00:16]} 21. Bxc4 {[%clk 0:00:57]}  Rxd4 {[%clk 0:00:16]} 22. Rb1+ {[%clk 0:00:55]}  Kc8 {[%clk 0:00:10]} 23. Ba6+ {[%clk 0:00:44]}  Kd7 {[%clk 0:00:06]} 24. Be3 {[%clk 0:00:41]}  Ra4 {[%clk 0:00:05]} 25. Rb7+ {[%clk 0:00:40]}  Kc8 {[%clk 0:00:02]} 26. Rxa7+ {[%clk 0:00:37]}  Kb8 {[%clk 0:00:02]} 27. Rb7+ {[%clk 0:00:35]}  Kc8 {[%clk 0:00:02]} 28. Rxe7+ {[%clk 0:00:31]}  Rxa6 {[%clk 0:00:01]} 29. Re8+ {[%clk 0:00:32]}  Kd7 {[%clk 0:00:01]} 30. Rxf8 {[%clk 0:00:33]} 1-0


[Site "https://www.chess.com"]

[Event "Titled Tuesday Blitz June 21 Early 2022"]
[White "Pham, Tran Gia Phuc"]
[Black "Taichman, Ori"]
[WhiteFideId "12415669"]
[BlackFideId "2804069"]
[WhiteElo "1789"]
[BlackElo "2227"]
[Result "0-1"]
[Round "04"]
[TimeControl "180+1"]
[Date "2022.06.21"]
[WhiteClock "0:00:18"]
[BlackClock "0:00:10"]

1. d4 {[%clk 0:03:00]}  Nf6 {[%clk 0:02:52]} 2. Nf3 {[%clk 0:03:00]}  g6 {[%clk 0:02:52]} 3. Bf4 {[%clk 0:02:59]}  Bg7 {[%clk 0:02:52]} 4. e3 {[%clk 0:02:59]}  d6 {[%clk 0:02:52]} 5. c4 {[%clk 0:02:59]}  O-O {[%clk 0:02:49]} 6. Nc3 {[%clk 0:02:59]}  Nc6 {[%clk 0:02:48]} 7. h3 {[%clk 0:02:59]}  Nd7 {[%clk 0:02:48]} 8. Be2 {[%clk 0:02:51]}  e5 {[%clk 0:02:48]} 9. Bh2 {[%clk 0:02:51]}  f5 {[%clk 0:02:47]} 10. O-O {[%clk 0:02:46]}  e4 {[%clk 0:02:45]} 11. Nd2 {[%clk 0:02:46]}  g5 {[%clk 0:02:41]} 12. f3 {[%clk 0:02:45]}  f4 {[%clk 0:02:38]} 13. Ndxe4 {[%clk 0:02:30]}  fxe3 {[%clk 0:02:37]} 14. d5 {[%clk 0:02:30]}  Nd4 {[%clk 0:02:29]} 15. Qd3 {[%clk 0:02:27]}  Nc5 {[%clk 0:02:28]} 16. Qxe3 {[%clk 0:02:26]}  Nc2 {[%clk 0:02:27]} 17. Qd2 {[%clk 0:02:17]}  Nxa1 {[%clk 0:02:26]} 18. Rxa1 {[%clk 0:02:17]}  h6 {[%clk 0:02:10]} 19. Nxc5 {[%clk 0:02:13]}  dxc5 {[%clk 0:02:11]} 20. Ne4 {[%clk 0:02:13]}  Bd4+ {[%clk 0:02:08]} 21. Kh1 {[%clk 0:02:12]}  Bf5 {[%clk 0:02:08]} 22. d6 {[%clk 0:02:09]}  cxd6 {[%clk 0:01:38]} 23. Nxd6 {[%clk 0:02:01]}  Bg6 {[%clk 0:01:27]} 24. Bd3 {[%clk 0:01:54]}  Rf6 {[%clk 0:01:14]} 25. Bxg6 {[%clk 0:01:37]}  Rxg6 {[%clk 0:01:03]} 26. Nf5 {[%clk 0:01:37]}  Re6 {[%clk 0:00:54]} 27. Rd1 {[%clk 0:01:34]}  Qf6 {[%clk 0:00:50]} 28. Qc2 {[%clk 0:01:15]}  Rae8 {[%clk 0:00:45]} 29. Bg3 {[%clk 0:01:11]}  Re2 {[%clk 0:00:40]} 30. Qd3 {[%clk 0:01:12]}  Rxb2 {[%clk 0:00:32]} 31. Nd6 {[%clk 0:00:58]}  Ree2 {[%clk 0:00:27]} 32. Ne4 {[%clk 0:00:58]}  Qg6 {[%clk 0:00:17]} 33. Bf2 {[%clk 0:00:51]}  Bxf2 {[%clk 0:00:10]} 34. Qd8+ {[%clk 0:00:49]}  Kh7 {[%clk 0:00:10]} 35. Rd7+ {[%clk 0:00:49]}  Qg7 {[%clk 0:00:11]} 36. Rxg7+ {[%clk 0:00:30]}  Kxg7 {[%clk 0:00:12]} 37. Qf6+ {[%clk 0:00:29]}  Kg8 {[%clk 0:00:12]} 38. Qg6+ {[%clk 0:00:27]}  Kf8 {[%clk 0:00:12]} 39. Qxh6+ {[%clk 0:00:28]}  Ke8 {[%clk 0:00:12]} 40. Qg6+ {[%clk 0:00:25]}  Kd7 {[%clk 0:00:12]} 41. Qf5+ {[%clk 0:00:25]}  Kc7 {[%clk 0:00:12]} 42. Nxf2 {[%clk 0:00:22]}  Rxf2 {[%clk 0:00:12]} 43. Qxc5+ {[%clk 0:00:22]}  Kd7 {[%clk 0:00:12]} 44. Qxg5 {[%clk 0:00:22]}  Rxa2 {[%clk 0:00:11]} 45. h4 {[%clk 0:00:22]}  Rxg2 {[%clk 0:00:10]} 46. Qxg2 {[%clk 0:00:21]}  Rxg2 {[%clk 0:00:11]} 47. Kxg2 {[%clk 0:00:21]}  a5 {[%clk 0:00:11]} 48. h5 {[%clk 0:00:22]}  Ke8 {[%clk 0:00:11]} 49. h6 {[%clk 0:00:18]}  Kf8 {[%clk 0:00:10]} 0-1


[Site "https://www.chess.com"]

[Event "Titled Tuesday Blitz June 21 Early 2022"]
[White "Piliczewski, Bogusz"]
[Black "Rom, Jasper"]
[WhiteFideId "1104144"]
[BlackFideId "2023733"]
[WhiteElo "1896"]
[BlackElo "2233"]
[Result "0-1"]
[Round "04"]
[TimeControl "180+1"]
[Date "2022.06.21"]
[WhiteClock "0:00:18"]
[BlackClock "0:00:38"]

1. d4 {[%clk 0:02:51]}  d5 {[%clk 0:02:59]} 2. Nf3 {[%clk 0:02:51]}  e6 {[%clk 0:02:58]} 3. c4 {[%clk 0:02:51]}  c6 {[%clk 0:02:58]} 4. Nc3 {[%clk 0:02:48]}  dxc4 {[%clk 0:02:58]} 5. a4 {[%clk 0:02:46]}  Bb4 {[%clk 0:02:56]} 6. g3 {[%clk 0:02:37]}  Nf6 {[%clk 0:02:50]} 7. Bg2 {[%clk 0:02:36]}  a5 {[%clk 0:02:42]} 8. O-O {[%clk 0:02:35]}  Nbd7 {[%clk 0:02:42]} 9. Bg5 {[%clk 0:02:21]}  h6 {[%clk 0:02:40]} 10. Bxf6 {[%clk 0:02:20]}  Qxf6 {[%clk 0:02:39]} 11. Ne5 {[%clk 0:02:21]}  Nxe5 {[%clk 0:02:37]} 12. Ne4 {[%clk 0:01:59]}  Qf5 {[%clk 0:02:34]} 13. dxe5 {[%clk 0:01:57]}  Qxe5 {[%clk 0:02:34]} 14. f4 {[%clk 0:01:40]}  Qc7 {[%clk 0:02:25]} 15. Qc2 {[%clk 0:01:32]}  b5 {[%clk 0:02:16]} 16. Rfc1 {[%clk 0:01:25]}  O-O {[%clk 0:01:50]} 17. axb5 {[%clk 0:01:23]}  cxb5 {[%clk 0:01:49]} 18. Nf6+ {[%clk 0:01:23]}  gxf6 {[%clk 0:01:49]} 19. Bxa8 {[%clk 0:01:23]}  Qa7+ {[%clk 0:01:49]} 20. Kf1 {[%clk 0:01:10]}  Qxa8 {[%clk 0:01:48]} 21. e4 {[%clk 0:01:05]}  Bb7 {[%clk 0:01:48]} 22. e5 {[%clk 0:00:58]}  Be4 {[%clk 0:01:44]} 23. Qd1 {[%clk 0:00:47]}  Bd3+ {[%clk 0:01:28]} 24. Kf2 {[%clk 0:00:46]}  Bc5+ {[%clk 0:01:27]} 25. Ke1 {[%clk 0:00:46]}  Qg2 {[%clk 0:01:10]} 26. Qg4+ {[%clk 0:00:21]}  Kh7 {[%clk 0:01:06]} 27. exf6 {[%clk 0:00:20]}  Bb4+ {[%clk 0:00:48]} 28. Kd1 {[%clk 0:00:18]}  Qd2# {[%clk 0:00:38]} 0-1


[Site "https://www.chess.com"]

[Event "Titled Tuesday Blitz June 21 Early 2022"]
[White "Poltorak, Sebastian"]
[Black "Kozelov, Roman"]
[WhiteFideId "1199498"]
[BlackFideId "14133377"]
[WhiteElo "2104"]
[BlackElo "2149"]
[Result "0-1"]
[Round "04"]
[TimeControl "180+1"]
[Date "2022.06.21"]
[WhiteClock "0:00:09"]
[BlackClock "0:01:44"]

1. f3 {[%clk 0:03:00]}  e5 {[%clk 0:02:59]} 2. c3 {[%clk 0:02:58]}  d5 {[%clk 0:02:59]} 3. d4 {[%clk 0:02:58]}  Nc6 {[%clk 0:02:57]} 4. e3 {[%clk 0:02:58]}  Bd6 {[%clk 0:02:52]} 5. Ne2 {[%clk 0:02:46]}  e4 {[%clk 0:02:45]} 6. fxe4 {[%clk 0:02:44]}  dxe4 {[%clk 0:02:45]} 7. g3 {[%clk 0:02:42]}  Bg4 {[%clk 0:02:44]} 8. Bg2 {[%clk 0:02:42]}  Nf6 {[%clk 0:02:44]} 9. O-O {[%clk 0:02:41]}  Qd7 {[%clk 0:02:43]} 10. Qc2 {[%clk 0:02:29]}  O-O-O {[%clk 0:02:41]} 11. a3 {[%clk 0:02:08]}  h5 {[%clk 0:02:40]} 12. h3 {[%clk 0:01:07]}  Bxe2 {[%clk 0:02:39]} 13. Qxe2 {[%clk 0:01:07]}  Bxg3 {[%clk 0:02:39]} 14. c4 {[%clk 0:01:06]}  g5 {[%clk 0:02:36]} 15. Rxf6 {[%clk 0:01:04]}  g4 {[%clk 0:02:35]} 16. Qf1 {[%clk 0:00:56]}  Nxd4 {[%clk 0:02:26]} 17. exd4 {[%clk 0:00:50]}  Qxd4+ {[%clk 0:02:25]} 18. Kh1 {[%clk 0:00:51]}  e3 {[%clk 0:02:21]} 19. Nc3 {[%clk 0:00:43]}  Kb8 {[%clk 0:02:10]} 20. Rxf7 {[%clk 0:00:31]}  Bd6 {[%clk 0:01:59]} 21. Bxe3 {[%clk 0:00:28]}  Qxe3 {[%clk 0:01:57]} 22. Re1 {[%clk 0:00:28]}  Qg3 {[%clk 0:01:57]} 23. Kg1 {[%clk 0:00:24]}  gxh3 {[%clk 0:01:56]} 24. Qf3 {[%clk 0:00:15]}  Qh2+ {[%clk 0:01:53]} 25. Kf1 {[%clk 0:00:15]}  hxg2+ {[%clk 0:01:51]} 26. Qxg2 {[%clk 0:00:16]}  Qh4 {[%clk 0:01:46]} 27. Re5 {[%clk 0:00:09]}  Bxe5 {[%clk 0:01:44]} 0-1


[Site "https://www.chess.com"]

[Event "Titled Tuesday Blitz June 21 Early 2022"]
[White "Prieto Aranguren, Alain"]
[Black "Dhanush, Bharadwaj"]
[WhiteFideId "2268906"]
[BlackFideId "25058746"]
[WhiteElo "2224"]
[BlackElo "2291"]
[Result "0-1"]
[Round "04"]
[TimeControl "180+1"]
[Date "2022.06.21"]
[WhiteClock "0:00:06"]
[BlackClock "0:00:11"]

1. d4 {[%clk 0:02:56]}  g6 {[%clk 0:02:59]} 2. h4 {[%clk 0:02:50]}  Nf6 {[%clk 0:02:55]} 3. Nc3 {[%clk 0:02:48]}  d5 {[%clk 0:02:51]} 4. Bf4 {[%clk 0:02:47]}  c6 {[%clk 0:02:47]} 5. Qd2 {[%clk 0:02:46]}  Bg7 {[%clk 0:02:46]} 6. Bh6 {[%clk 0:02:46]}  Bxh6 {[%clk 0:02:42]} 7. Qxh6 {[%clk 0:02:45]}  Qb6 {[%clk 0:02:42]} 8. O-O-O {[%clk 0:02:44]}  Na6 {[%clk 0:02:37]} 9. Nf3 {[%clk 0:02:36]}  Bf5 {[%clk 0:02:36]} 10. Ne5 {[%clk 0:02:29]}  Nb4 {[%clk 0:02:18]} 11. Qg7 {[%clk 0:02:13]}  Rf8 {[%clk 0:02:17]} 12. e4 {[%clk 0:01:51]}  Bxe4 {[%clk 0:01:54]} 13. Nxe4 {[%clk 0:01:50]}  dxe4 {[%clk 0:01:54]} 14. Bc4 {[%clk 0:01:46]}  Nbd5 {[%clk 0:01:16]} 15. h5 {[%clk 0:01:36]}  O-O-O {[%clk 0:01:03]} 16. Nxf7 {[%clk 0:01:30]}  Rg8 {[%clk 0:01:02]} 17. Qh6 {[%clk 0:01:25]}  Rdf8 {[%clk 0:00:59]} 18. hxg6 {[%clk 0:01:17]}  hxg6 {[%clk 0:00:59]} 19. Ne5 {[%clk 0:01:01]}  Qb4 {[%clk 0:00:34]} 20. Qh3+ {[%clk 0:01:00]}  Kb8 {[%clk 0:00:28]} 21. Qe6 {[%clk 0:00:57]}  Ka8 {[%clk 0:00:26]} 22. c3 {[%clk 0:00:46]}  Qa5 {[%clk 0:00:20]} 23. Bb3 {[%clk 0:00:36]}  a6 {[%clk 0:00:21]} 24. Rh6 {[%clk 0:00:23]}  e3 {[%clk 0:00:12]} 25. fxe3 {[%clk 0:00:19]}  Nxe3 {[%clk 0:00:12]} 26. Re1 {[%clk 0:00:15]}  Nfd5 {[%clk 0:00:13]} 27. Rxg6 {[%clk 0:00:13]}  Rxg6 {[%clk 0:00:12]} 28. Nxg6 {[%clk 0:00:12]}  Rf2 {[%clk 0:00:12]} 29. Qc8+ {[%clk 0:00:11]}  Ka7 {[%clk 0:00:12]} 30. Rh1 {[%clk 0:00:09]}  Nxc3 {[%clk 0:00:12]} 31. Rh8 {[%clk 0:00:07]}  Nxa2+ {[%clk 0:00:11]} 32. Kb1 {[%clk 0:00:06]}  Rf1+ {[%clk 0:00:11]} 0-1


[Site "https://www.chess.com"]

[Event "Titled Tuesday Blitz June 21 Early 2022"]
[White "Riehle, Marco"]
[Black "Lazavik, Denis"]
[WhiteFideId "12904392"]
[BlackFideId "13515110"]
[WhiteElo "2462"]
[BlackElo "2437"]
[Result "1/2-1/2"]
[Round "04"]
[TimeControl "180+1"]
[Date "2022.06.21"]
[WhiteClock "0:00:41"]
[BlackClock "0:00:06"]

1. e4 {[%clk 0:03:00]}  c5 {[%clk 0:02:59]} 2. a3 {[%clk 0:03:00]}  Nc6 {[%clk 0:02:43]} 3. b4 {[%clk 0:02:59]}  cxb4 {[%clk 0:02:42]} 4. axb4 {[%clk 0:03:00]}  Nxb4 {[%clk 0:02:43]} 5. d4 {[%clk 0:02:58]}  d5 {[%clk 0:02:42]} 6. c3 {[%clk 0:02:58]}  Nc6 {[%clk 0:02:41]} 7. exd5 {[%clk 0:02:58]}  Qxd5 {[%clk 0:02:41]} 8. Na3 {[%clk 0:02:58]}  Bf5 {[%clk 0:02:08]} 9. Nb5 {[%clk 0:02:58]}  Rc8 {[%clk 0:02:08]} 10. Nxa7 {[%clk 0:02:58]}  Nxa7 {[%clk 0:02:02]} 11. Rxa7 {[%clk 0:02:59]}  Nf6 {[%clk 0:02:00]} 12. Nf3 {[%clk 0:02:57]}  g6 {[%clk 0:01:54]} 13. Bd3 {[%clk 0:02:45]}  Bxd3 {[%clk 0:01:45]} 14. Qxd3 {[%clk 0:02:45]}  Bg7 {[%clk 0:01:46]} 15. O-O {[%clk 0:02:43]}  O-O {[%clk 0:01:46]} 16. Ne5 {[%clk 0:02:34]}  Rfd8 {[%clk 0:01:41]} 17. Re1 {[%clk 0:02:24]}  Nd7 {[%clk 0:01:33]} 18. Nxd7 {[%clk 0:02:16]}  Rxd7 {[%clk 0:01:34]} 19. Qe3 {[%clk 0:02:00]}  e6 {[%clk 0:01:32]} 20. h3 {[%clk 0:01:59]}  Qc6 {[%clk 0:01:17]} 21. Bd2 {[%clk 0:01:57]}  b5 {[%clk 0:01:13]} 22. Rea1 {[%clk 0:01:52]}  b4 {[%clk 0:01:06]} 23. Rxd7 {[%clk 0:01:53]}  Qxd7 {[%clk 0:01:06]} 24. Rb1 {[%clk 0:01:44]}  bxc3 {[%clk 0:01:01]} 25. Bxc3 {[%clk 0:01:45]}  Qd5 {[%clk 0:01:00]} 26. Re1 {[%clk 0:01:37]}  h5 {[%clk 0:00:59]} 27. Ba1 {[%clk 0:01:36]}  Bf6 {[%clk 0:00:57]} 28. g3 {[%clk 0:01:32]}  Kg7 {[%clk 0:00:55]} 29. h4 {[%clk 0:01:30]}  Rc4 {[%clk 0:00:52]} 30. Bb2 {[%clk 0:01:26]}  Kg8 {[%clk 0:00:38]} 31. Ba1 {[%clk 0:01:24]}  Bxd4 {[%clk 0:00:37]} 32. Bxd4 {[%clk 0:01:25]}  Rxd4 {[%clk 0:00:38]} 33. Rc1 {[%clk 0:01:18]}  Kg7 {[%clk 0:00:34]} 34. Qc3 {[%clk 0:01:17]}  e5 {[%clk 0:00:33]} 35. Re1 {[%clk 0:01:17]}  Rd1 {[%clk 0:00:31]} 36. Rxd1 {[%clk 0:01:15]}  Qxd1+ {[%clk 0:00:30]} 37. Kh2 {[%clk 0:01:16]}  Qd5 {[%clk 0:00:31]} 38. Qb2 {[%clk 0:01:15]}  Qd4 {[%clk 0:00:30]} 39. Qc2 {[%clk 0:01:14]}  e4 {[%clk 0:00:27]} 40. Kg2 {[%clk 0:01:12]}  Qd5 {[%clk 0:00:27]} 41. Qb2+ {[%clk 0:01:12]}  Kh7 {[%clk 0:00:27]} 42. Kh2 {[%clk 0:01:12]}  Qe6 {[%clk 0:00:26]} 43. Qe2 {[%clk 0:01:09]}  Qe5 {[%clk 0:00:24]} 44. Qe3 {[%clk 0:01:08]}  Kg7 {[%clk 0:00:20]} 45. Kg2 {[%clk 0:01:07]}  Kf6 {[%clk 0:00:16]} 46. Qb6+ {[%clk 0:01:07]}  Kf5 {[%clk 0:00:12]} 47. Qe3 {[%clk 0:01:07]}  Qd5 {[%clk 0:00:09]} 48. Qf4+ {[%clk 0:01:05]}  Ke6 {[%clk 0:00:09]} 49. Qe3 {[%clk 0:01:05]}  Qd3 {[%clk 0:00:09]} 50. Qb6+ {[%clk 0:01:05]}  Kf5 {[%clk 0:00:09]} 51. Qc5+ {[%clk 0:01:03]}  Kf6 {[%clk 0:00:07]} 52. Qb6+ {[%clk 0:01:01]}  Kg7 {[%clk 0:00:07]} 53. Qb2+ {[%clk 0:01:02]}  Kh7 {[%clk 0:00:07]} 54. Qf6 {[%clk 0:01:02]}  Qd5 {[%clk 0:00:06]} 55. Kh2 {[%clk 0:01:02]}  Qf5 {[%clk 0:00:05]} 56. Qd4 {[%clk 0:01:00]}  Kg8 {[%clk 0:00:06]} 57. Qd8+ {[%clk 0:00:59]}  Kg7 {[%clk 0:00:06]} 58. Qd4+ {[%clk 0:01:00]}  Qf6 {[%clk 0:00:06]} 59. Qe3 {[%clk 0:00:58]}  Qe5 {[%clk 0:00:06]} 60. Kg2 {[%clk 0:00:57]}  Kf6 {[%clk 0:00:06]} 61. Qb6+ {[%clk 0:00:57]}  Kf5 {[%clk 0:00:07]} 62. Qe3 {[%clk 0:00:57]}  Ke6 {[%clk 0:00:06]} 63. Qb6+ {[%clk 0:00:57]}  Qd6 {[%clk 0:00:06]} 64. Qb3+ {[%clk 0:00:56]}  Qd5 {[%clk 0:00:07]} 65. Qb6+ {[%clk 0:00:57]}  Kf5 {[%clk 0:00:07]} 66. Qe3 {[%clk 0:00:55]}  f6 {[%clk 0:00:07]} 67. Qf4+ {[%clk 0:00:53]}  Ke6 {[%clk 0:00:07]} 68. Qe3 {[%clk 0:00:54]}  g5 {[%clk 0:00:07]} 69. hxg5 {[%clk 0:00:53]}  fxg5 {[%clk 0:00:07]} 70. Qb6+ {[%clk 0:00:53]}  Kf5 {[%clk 0:00:08]} 71. Kh2 {[%clk 0:00:52]}  Kg4 {[%clk 0:00:07]} 72. Qe3 {[%clk 0:00:50]}  Qf5 {[%clk 0:00:07]} 73. Qd4 {[%clk 0:00:45]}  h4 {[%clk 0:00:06]} 74. Qd1+ {[%clk 0:00:45]}  Qf3 {[%clk 0:00:06]} 75. Qd7+ {[%clk 0:00:45]}  Kh5 {[%clk 0:00:05]} 76. Qh7+ {[%clk 0:00:41]}  Kg4 {[%clk 0:00:05]} 77. Qd7+ {[%clk 0:00:42]}  Kh5 {[%clk 0:00:05]} 78. Qh7+ {[%clk 0:00:40]}  Kg4 {[%clk 0:00:06]} 79. Qd7+ {[%clk 0:00:41]} 1/2-1/2


[Site "https://www.chess.com"]